bitfinex/quotes_ETHUSD_20260217
["timestamp","ask_amount","ask_price","bid_price","bid_amount"]
[1771309217736,0.0011,1980.5,1980.2,1.73680937]
[1771309219011,0.0011,1980.5,1980.3,0.47431064]
[1771309219412,0.0011,1980.5,1980.3,1.73674124]
[1771309221346,0.0011,1980.7,1980.3,1.2624306]
[1771309221546,0.0011,1981.3,1980.7,0.47431064]
[1771309221848,0.0011,1981.3,1980.8,0.803]
[1771309221849,1.74683709,1981.3,1980.8,0.803]
[1771309222424,0.0011,1981.3,1980.8,0.803]
[1771309222620,0.0011,1981.3,1980.8,1.27731064]
[1771309223850,0.0011,1981.3,1980.9,1.2620526]
[1771309224748,0.0011,1981.2,1980.9,1.2620526]
[1771309224945,0.0011,1981.2,1980.8,2.53938663]
[1771309226652,0.0011,1981.2,1980.9,0.47431064]
[1771309227026,0.0011,1981.2,1980.8,2.06507599]
[1771309227538,0.0011,1981.2,1980.8,0.803]
[1771309230141,0.0011,1981.2,1980.8,2.06511429]
[1771309232434,0.0011,1981.3,1981.0,0.47431064]
[1771309233138,0.0011,1981.5,1981.0,0.47431064]
[1771309233340,0.0011,1981.5,1981.1,5.93097322]
[1771309233746,0.0011,1981.5,1981.1,0.47431064]
[1771309234267,0.0011,1981.5,1981.2,0.806]
[1771309237450,0.0011,1981.4,1981.2,0.806]
[1771309239479,0.48503875,1981.4,1981.2,0.806]
[1771309240371,0.48503875,1981.4,1980.9,2.07002744]
[1771309241374,0.48503875,1981.4,1980.9,1.26302744]
[1771309241673,0.48503875,1981.4,1981.0,0.808]
[1771309243574,0.48503875,1981.4,1981.0,2.06998448]
[1771309243868,0.48503875,1981.4,1981.0,0.808]
[1771309244370,0.48503875,1981.4,1981.0,2.06998366]
[1771309244566,0.48503875,1981.4,1981.0,0.808]
[1771309249864,0.48503875,1981.4,1981.1,0.001]
[1771309255259,0.0011,1981.4,1981.1,0.001]
[1771309255764,1.26286192,1981.4,1981.1,0.001]
[1771309256471,0.49464356,1981.3,1981.1,0.001]
[1771309261293,1.75644144,1981.3,1981.1,0.001]
[1771309261489,0.40010336,1981.2,1981.1,0.001]
[1771309264080,0.40476532,1981.2,1981.1,0.001]
[1771309265215,0.89940888,1981.2,1981.1,0.001]
[1771309265813,0.8993106,1981.2,1981.1,0.001]
[1771309267518,0.40466704,1981.2,1981.1,0.001]
[1771309270816,0.0011,1981.3,1981.1,0.001]
[1771309273303,0.0011,1981.3,1981.2,0.001]
[1771309273608,0.40569767,1981.3,1981.2,0.001]
[1771309274087,2.12396797,1981.3,1981.2,0.001]
[1771309275603,0.4564725,1981.2,1981.0,0.001]
[1771309275805,0.86107017,1981.1,1980.8,0.001]
[1771309276097,0.40459767,1981.0,1980.8,0.001]
[1771309276297,0.4564725,1981.1,1980.8,0.001]
[1771309276502,0.40449501,1981.0,1980.8,0.001]
[1771309276801,0.4564725,1981.1,1980.8,0.001]
[1771309276988,0.40449501,1981.0,1980.8,0.001]
[1771309277195,1.2628978,1981.3,1980.8,0.49561282]
[1771309277418,0.40449441,1981.2,1980.8,0.49561282]
[1771309277718,0.40449441,1981.1,1980.8,0.001]
[1771309277919,1.2619056,1981.2,1980.8,0.001]
[1771309278120,0.40444547,1981.1,1980.8,0.001]
[1771309278422,0.4564725,1981.1,1980.8,0.001]
[1771309279112,0.40440017,1981.0,1980.8,0.001]
[1771309279310,0.4564725,1981.1,1980.8,0.001]
[1771309279824,1.66634462,1981.0,1980.8,0.001]
[1771309280011,1.26198889,1981.0,1980.8,0.001]
[1771309281392,1.71846139,1981.0,1980.8,0.001]
[1771309281593,0.4564725,1980.8,1980.4,0.807]
[1771309281800,1.66647608,1980.7,1980.1,1.40361282]
[1771309282022,1.71865253,1980.7,1980.1,2.66616713]
[1771309282618,1.71839769,1981.2,1980.2,0.49461282]
[1771309282824,1.66600016,1981.1,1980.2,0.49461282]
[1771309283121,0.40407497,1981.0,1980.4,0.49461282]
[1771309283321,0.40407497,1980.9,1980.4,0.49461282]
[1771309283526,0.40407497,1980.8,1980.4,0.49461282]
[1771309283717,1.71839769,1981.1,1980.4,0.49461282]
[1771309284023,0.40396164,1981.0,1980.4,0.49461282]
[1771309284230,0.40396164,1980.9,1980.4,0.49461282]
[1771309284426,0.40396164,1980.8,1980.4,0.49461282]
[1771309284627,0.4564725,1981.0,1980.4,0.49461282]
[1771309284829,0.40386654,1980.9,1980.4,0.49461282]
[1771309285032,0.40386654,1980.8,1980.4,0.49461282]
[1771309285232,0.4564725,1981.0,1980.4,0.49461282]
[1771309285401,0.40388594,1980.9,1980.4,0.49461282]
[1771309285601,0.40388594,1980.8,1980.4,0.49461282]
[1771309285901,1.2620526,1980.9,1980.4,0.49461282]
[1771309286104,0.40380262,1980.8,1980.4,0.49461282]
[1771309286303,0.0011,1980.6,1980.4,0.49461282]
[1771309287213,0.0011,1980.6,1980.5,0.49461282]
[1771309288540,0.0011,1980.9,1980.5,1.75691746]
[1771309288911,0.0011,1980.9,1980.5,0.49461282]
[1771309289432,0.0011,1980.9,1980.6,0.49461282]
[1771309290605,0.0011,1980.9,1980.8,0.49461282]
[1771309290817,1.26291362,1981.3,1980.8,0.49461282]
[1771309291035,0.40373053,1981.2,1980.8,0.49461282]
[1771309291243,0.40373053,1981.1,1980.8,0.49461282]
[1771309291534,0.0011,1981.3,1980.8,0.49461282]
[1771309291848,0.40378657,1981.2,1980.8,0.49461282]
[1771309292027,0.40378657,1981.1,1980.8,0.49461282]
[1771309292233,1.26289871,1981.3,1980.8,0.49461282]
[1771309292410,0.40378655,1981.2,1980.8,0.49461282]
[1771309292612,1.26289871,1981.3,1980.8,0.49461282]
[1771309292826,0.40380321,1981.2,1980.8,0.49461282]
[1771309293023,0.0011,1981.3,1980.9,0.49461282]
[1771309293207,0.40380308,1981.2,1980.9,0.49461282]
[1771309293533,1.26289834,1981.3,1980.9,0.49461282]
[1771309293739,0.40382015,1981.2,1980.8,0.49461282]
[1771309293909,1.26289834,1981.3,1980.8,0.49461282]
[1771309294109,0.40382015,1981.2,1980.8,0.49461282]
[1771309294339,1.26289834,1981.3,1980.8,0.49461282]
[1771309294519,0.40383832,1981.2,1980.8,0.49461282]
[1771309294720,1.26289834,1981.3,1980.8,0.49461282]
[1771309294921,0.40383832,1981.2,1980.8,0.49461282]
[1771309295139,1.26289834,1981.3,1980.8,0.49461282]
[1771309295322,0.40383779,1981.2,1980.8,0.49461282]
[1771309295516,1.26289834,1981.3,1980.8,1.30361282]
[1771309295839,0.4038541,1981.2,1980.8,1.30361282]
[1771309296039,1.26289834,1981.3,1980.8,1.30361282]
[1771309296357,0.40385409,1981.2,1980.8,1.30361282]
[1771309296517,1.26289834,1981.3,1980.8,1.30361282]
[1771309296715,0.4564725,1981.1,1980.8,0.809]
[1771309296927,1.71845493,1981.1,1980.6,0.81]
[1771309297707,0.4575725,1981.3,1980.6,1.30461282]
[1771309297912,0.40389491,1981.2,1980.8,0.49461282]
[1771309298143,0.0011,1981.0,1980.8,0.49461282]
[1771309298542,0.0011,1981.3,1980.8,0.49461282]
[1771309299141,0.0011,1981.3,1980.9,0.49461282]
[1771309300329,0.0011,1981.3,1981.0,0.49461282]
[1771309300622,0.0011,1981.3,1980.9,0.49461282]
[1771309301749,0.0011,1981.3,1980.7,7.21684043]
[1771309301949,0.0011,1981.3,1980.8,0.49461282]
[1771309303532,1.7193703,1981.3,1980.7,6.72222761]
[1771309303736,0.4564725,1981.2,1980.8,0.812]
[1771309306753,1.71837195,1981.2,1980.8,0.812]
[1771309308056,0.4564725,1981.2,1980.8,0.812]
[1771309308364,0.0011,1981.3,1980.8,2.5465646]
[1771309310057,0.0011,1981.1,1980.8,1.28445682]
[1771309310244,0.0011,1981.1,1980.8,0.812]
[1771309310557,0.46978814,1981.1,1980.8,0.812]
[1771309311350,0.46978814,1981.1,1980.7,0.001]
[1771309311754,1.26198889,1981.0,1980.7,0.001]
[1771309312061,1.73175806,1981.1,1980.7,0.001]
[1771309314284,0.46868814,1981.0,1980.7,0.001]
[1771309317489,1.73072687,1981.0,1980.7,0.001]
[1771309320175,1.2630705,1981.1,1980.7,0.001]
[1771309320350,0.40448854,1981.0,1980.7,0.001]
[1771309320550,1.26302686,1981.1,1980.7,0.001]
[1771309320753,0.40449267,1981.0,1980.7,0.001]
[1771309320953,1.26302686,1981.1,1980.7,0.001]
[1771309321153,0.40449262,1981.0,1980.7,0.001]
[1771309321456,1.26302686,1981.1,1980.7,0.001]
[1771309321656,0.40909672,1981.0,1980.7,0.001]
[1771309321856,1.26302686,1981.1,1980.7,0.001]
[1771309322159,0.40909672,1981.0,1980.7,0.001]
[1771309322476,1.26302686,1981.1,1980.7,0.001]
[1771309322780,0.41019959,1981.0,1980.8,0.001]
[1771309322983,0.0011,1981.0,1980.8,0.001]
[1771309326667,0.46978814,1981.0,1980.8,0.001]
[1771309326867,0.0011,1981.0,1980.8,0.001]
[1771309332890,0.0011,1981.0,1980.8,0.46276595]
[1771309333075,0.0011,1981.1,1980.8,0.46276595]
[1771309334496,0.0011,1981.1,1980.8,0.811]
[1771309334675,0.0011,1981.1,1980.9,0.45409872]
[1771309334877,0.0011,1981.1,1980.9,0.45509872]
[1771309335390,0.0011,1981.0,1980.9,0.001]
[1771309335591,0.0011,1981.1,1980.9,0.001]
[1771309335791,0.46897088,1981.1,1980.9,0.001]
[1771309338198,0.0011,1981.1,1980.9,0.001]
[1771309339212,0.0011,1981.1,1980.9,0.45509872]
[1771309340320,0.0011,1981.1,1980.9,1.71714524]
[1771309340516,0.0011,1981.1,1980.9,0.45509872]
[1771309341182,0.0011,1981.1,1980.9,0.001]
[1771309347028,0.0011,1981.1,1981.0,0.001]
[1771309365443,0.0011,1981.3,1981.0,0.45343175]
[1771309365644,0.0011,1981.5,1981.1,0.45243175]
[1771309365846,0.0011,1981.5,1981.0,5.45786709]
[1771309365847,0.0011,1981.5,1981.2,1.27343175]
[1771309366627,0.0011,1981.5,1981.3,1.2617978]
[1771309366823,0.0011,1981.5,1981.2,2.53526017]
[1771309368644,0.0011,1981.5,1981.2,7.99212726]
[1771309369329,0.0011,1981.5,1981.2,7.53969551]
[1771309369530,0.0011,1981.5,1981.2,7.99212726]
[1771309369751,0.0011,1981.5,1981.2,0.821]
[1771309371425,0.0011,1981.4,1981.2,0.821]
[1771309371827,0.0011,1981.4,1981.2,0.824]
[1771309373664,0.45970563,1981.4,1981.2,0.824]
[1771309374362,0.45970563,1981.4,1981.1,0.001]
[1771309374927,0.45970563,1981.4,1980.8,0.824]
[1771309375126,0.45970563,1981.4,1980.8,0.825]
[1771309375322,0.45970563,1981.4,1980.8,2.08610915]
[1771309375556,0.45970563,1981.4,1980.9,0.001]
[1771309376246,0.45860563,1981.3,1980.9,0.001]
[1771309380660,0.45860563,1981.3,1981.0,0.001]
[1771309380960,0.45860563,1981.3,1980.9,0.001]
[1771309381864,1.720414,1981.3,1980.9,0.001]
[1771309382156,1.720414,1981.3,1980.8,0.824]
[1771309382459,1.720414,1981.3,1980.9,0.001]
[1771309383160,0.45860563,1981.2,1981.0,0.002]
[1771309383384,0.45860563,1981.2,1981.0,0.001]
[1771309388253,0.45860563,1981.2,1981.0,0.002]
[1771309388443,0.0011,1981.3,1981.0,0.002]
[1771309392350,0.0011,1981.3,1981.1,0.001]
[1771309394958,0.0011,1981.2,1981.1,0.001]
[1771309397379,0.0011,1981.2,1981.0,0.001]
[1771309397701,0.0011,1981.2,1981.1,0.001]
[1771309399086,0.0011,1981.2,1981.0,0.001]
[1771309399287,0.0011,1981.2,1981.1,0.001]
[1771309401087,0.0011,1981.4,1981.1,0.001]
[1771309401289,0.0011,1981.4,1981.2,0.001]
[1771309401482,0.0011,1981.4,1981.1,0.001]
[1771309402609,0.0011,1981.4,1981.2,0.001]
[1771309402794,0.0011,1981.4,1981.1,0.001]
[1771309403599,0.46200841,1981.4,1981.2,0.001]
[1771309403796,0.46200841,1981.4,1981.1,0.001]
[1771309404297,0.0011,1981.4,1981.1,0.001]
[1771309405439,0.0011,1981.4,1981.0,0.001]
[1771309405723,0.0011,1981.4,1981.1,0.001]
[1771309406927,0.0011,1981.4,1981.2,0.001]
[1771309407225,0.0011,1981.3,1981.2,0.001]
[1771309410300,0.0011,1981.3,1981.2,0.002]
[1771309411927,0.0011,1981.3,1981.2,0.001]
[1771309412132,0.0011,1981.3,1981.2,0.002]
[1771309415220,0.0011,1981.3,1981.2,0.001]
[1771309415620,0.46200841,1981.3,1981.2,0.001]
[1771309418026,1.72380621,1981.3,1981.2,0.001]
[1771309418835,0.46090841,1981.2,1981.0,0.001]
[1771309420123,0.46090841,1981.0,1980.9,0.001]
[1771309425334,1.7228973,1981.0,1980.9,0.001]
[1771309426145,0.46090841,1981.0,1980.9,0.001]
[1771309426547,1.26192549,1981.1,1980.9,0.001]
[1771309426715,1.71823196,1981.1,1981.0,0.001]
[1771309427041,1.71823196,1981.1,1980.9,0.001]
[1771309427337,1.71823196,1981.1,1980.8,0.001]
[1771309427646,1.71823196,1981.1,1980.9,0.001]
[1771309428453,1.71823196,1981.1,1981.0,0.001]
[1771309428636,1.71823196,1981.1,1980.9,0.001]
[1771309429037,1.71823196,1981.1,1981.0,0.001]
[1771309429343,1.71823196,1981.1,1980.9,0.001]
[1771309429728,1.71823196,1981.1,1981.0,0.001]
[1771309429934,1.71823196,1981.1,1980.9,0.001]
[1771309430344,1.71823196,1981.1,1980.8,0.001]
[1771309430345,1.71823196,1981.1,1981.0,0.001]
[1771309430526,0.0011,1981.3,1981.1,0.49718604]
[1771309430841,0.0011,1981.3,1981.1,0.001]
[1771309431048,0.0011,1981.3,1981.2,0.001]
[1771309431242,0.0011,1981.3,1981.1,0.001]
[1771309431750,0.0011,1981.3,1981.2,0.001]
[1771309432047,0.0011,1981.3,1981.1,0.001]
[1771309432438,0.0011,1981.3,1981.1,0.49818604]
[1771309432853,0.0011,1981.3,1981.2,0.001]
[1771309435452,0.0011,1981.3,1981.1,0.49718604]
[1771309435658,0.0011,1981.3,1981.2,0.001]
[1771309437960,0.0011,1981.5,1981.3,0.49818604]
[1771309438133,0.0011,1981.7,1981.3,0.49718604]
[1771309438336,0.0011,1981.7,1981.4,0.001]
[1771309440152,0.0011,1981.7,1981.5,0.001]
[1771309440578,0.0011,1981.7,1981.6,0.001]
[1771309446563,0.0011,1981.7,1981.4,2.58088646]
[1771309446768,0.0011,1981.7,1981.5,0.001]
[1771309447287,0.0011,1981.9,1981.6,0.49818604]
[1771309447668,0.0011,1981.9,1981.7,0.001]
[1771309449863,0.0011,1981.9,1981.8,0.49818604]
[1771309450066,0.0011,1981.9,1981.8,0.49718604]
[1771309450297,0.0011,1981.9,1981.8,0.001]
[1771309451993,0.0011,1982.1,1981.8,0.001]
[1771309452193,0.0011,1982.1,1981.9,0.001]
[1771309452395,0.0011,1982.1,1981.8,0.001]
[1771309453488,0.0011,1982.1,1981.8,0.828]
[1771309453693,0.0011,1982.1,1981.8,2.08947755]
[1771309453995,0.0011,1982.1,1981.8,0.828]
[1771309455200,0.0011,1981.9,1981.8,0.828]
[1771309457400,0.0011,1981.9,1981.8,0.827]
[1771309459003,0.0011,1981.9,1981.8,0.828]
[1771309459579,0.0011,1981.9,1981.8,2.08947946]
[1771309459789,0.0011,1982.1,1981.8,2.08947946]
[1771309459998,0.0011,1982.1,1981.9,0.001]
[1771309460404,0.0011,1982.1,1982.0,0.001]
[1771309460599,0.0011,1982.1,1981.9,0.001]
[1771309460992,0.0011,1982.1,1982.0,0.001]
[1771309461194,0.0011,1982.1,1981.8,0.827]
[1771309461195,0.0011,1982.1,1981.9,0.001]
[1771309461707,0.0011,1982.1,1982.0,0.001]
[1771309462016,0.0011,1982.1,1981.9,0.001]
[1771309462374,0.0011,1982.1,1982.0,0.001]
[1771309462576,0.0011,1982.1,1981.9,0.001]
[1771309462980,0.0011,1982.1,1982.0,0.001]
[1771309463304,0.0011,1982.1,1981.8,0.827]
[1771309463305,0.0011,1982.1,1981.9,0.001]
[1771309463794,0.0011,1982.1,1982.0,0.001]
[1771309464104,0.0011,1982.1,1981.9,0.001]
[1771309464602,0.0011,1982.1,1982.0,0.001]
[1771309464793,0.0011,1982.1,1981.9,0.001]
[1771309465197,0.0011,1982.1,1982.0,0.001]
[1771309465396,0.0011,1982.1,1981.9,0.001]
[1771309465906,0.0011,1982.1,1982.0,0.001]
[1771309466106,0.0011,1982.1,1981.9,0.001]
[1771309466604,0.0011,1982.1,1982.0,0.001]
[1771309467106,0.0011,1982.1,1982.0,0.002]
[1771309476514,0.0011,1982.1,1982.0,0.001]
[1771309476819,0.0011,1982.1,1982.0,0.002]
[1771309488940,0.0011,1982.1,1982.0,0.001]
[1771309489237,0.0011,1982.3,1982.1,0.001]
[1771309491724,0.0011,1982.3,1982.2,0.001]
[1771309492051,0.0011,1982.3,1982.1,0.001]
[1771309492457,0.45734699,1982.3,1982.1,0.001]
[1771309494122,0.0011,1982.3,1982.1,0.001]
[1771309495550,0.45734699,1982.3,1982.0,0.001]
[1771309495844,0.45734699,1982.3,1982.0,0.002]
[1771309496839,0.45734699,1982.3,1982.1,0.001]
[1771309497032,0.001,1982.2,1981.9,0.8151]
[1771309497239,0.001,1982.1,1981.9,0.8151]
[1771309497444,0.001,1982.2,1981.9,0.8151]
[1771309497850,0.001,1982.1,1981.9,0.8151]
[1771309498159,0.001,1982.2,1981.9,0.8151]
[1771309498550,0.001,1982.1,1981.9,0.8151]
[1771309498754,0.001,1982.2,1981.9,0.8151]
[1771309499247,0.001,1982.1,1981.9,0.8151]
[1771309499450,0.001,1982.2,1981.9,0.8151]
[1771309499851,0.001,1982.1,1981.9,0.8151]
[1771309500058,0.001,1982.2,1981.9,0.8151]
[1771309500579,0.001,1982.1,1981.9,0.8151]
[1771309500782,0.001,1982.2,1981.9,0.8151]
[1771309501282,0.001,1982.1,1981.9,0.8151]
[1771309501458,0.001,1982.2,1981.9,0.8151]
[1771309501965,0.001,1982.1,1981.9,0.8151]
[1771309502165,0.001,1982.2,1982.0,0.45329317]
[1771309502385,0.0021,1982.3,1981.9,7.98109262]
[1771309502576,0.0011,1982.3,1981.9,7.98109262]
[1771309502970,0.0011,1982.3,1982.0,0.001]
[1771309503170,0.0011,1982.2,1982.0,0.001]
[1771309503358,0.45734699,1982.2,1982.0,0.001]
[1771309505375,1.71857978,1982.2,1982.0,0.001]
[1771309505577,0.45624699,1982.1,1982.0,0.001]
[1771309506185,1.71753552,1982.1,1982.0,0.001]
[1771309506775,0.45624699,1982.1,1982.0,0.001]
[1771309507987,1.26233383,1982.2,1982.0,0.001]
[1771309507988,0.0011,1982.2,1982.0,0.001]
[1771309515688,0.49335039,1982.2,1982.0,0.001]
[1771309516091,0.0011,1982.1,1982.0,0.001]
[1771309516402,0.49335039,1982.1,1982.0,0.001]
[1771309518307,1.75463892,1982.1,1982.0,0.001]
[1771309522083,1.75463892,1982.1,1981.9,0.001]
[1771309527096,0.49225039,1982.0,1981.9,0.001]
[1771309528400,0.49335039,1982.0,1981.9,0.001]
[1771309528795,0.0011,1982.0,1981.9,0.001]
[1771309534322,0.0011,1982.0,1981.8,0.001]
[1771309540109,0.0011,1982.0,1981.9,0.001]
[1771309549050,0.0011,1982.0,1981.7,0.001]
[1771309549349,0.0011,1982.0,1981.7,0.45260708]
[1771309550337,0.0011,1982.0,1981.8,0.831]
[1771309550506,0.0011,1982.0,1981.8,1.33008271]
[1771309551436,0.0011,1982.0,1981.8,0.831]
[1771309552318,0.0011,1982.0,1981.9,0.001]
[1771309553349,0.0011,1982.0,1981.8,0.832]
[1771309553350,0.0011,1982.0,1981.8,0.001]
[1771309555347,0.0011,1982.0,1981.8,0.50008271]
[1771309555546,0.0011,1982.0,1981.8,1.33108271]
[1771309557248,0.0011,1982.0,1981.8,0.832]
[1771309561251,0.45684901,1982.0,1981.8,0.001]
[1771309561454,0.45684901,1982.0,1979.9,1.33208271]
[1771309561455,0.1024,1981.5,1979.9,1.33208271]
[1771309561666,0.1024,1981.5,1980.5,0.007]
[1771309561667,0.45574901,1981.0,1980.5,0.007]
[1771309561837,1.2620526,1980.9,1980.5,0.007]
[1771309562160,1.2620526,1980.9,1980.3,1.22408271]
[1771309562161,0.92940189,1980.8,1980.3,0.725]
[1771309562456,0.45574901,1980.6,1980.2,0.774]
[1771309562763,0.47365288,1980.5,1980.2,0.774]
[1771309562962,0.47365288,1980.4,1980.2,0.774]
[1771309563255,0.45574901,1980.6,1980.2,0.774]
[1771309563460,0.47133838,1980.5,1980.2,0.774]
[1771309563688,0.45574901,1980.6,1980.2,0.774]
[1771309563824,0.39969702,1980.2,1980.0,0.001]
[1771309564026,0.39969702,1980.2,1980.1,0.833]
[1771309564650,1.71799543,1980.6,1980.1,0.833]
[1771309565361,1.71799543,1980.6,1980.2,0.833]
[1771309565860,1.71799543,1980.6,1980.0,0.001]
[1771309566066,0.45574901,1980.5,1980.1,0.833]
[1771309566458,0.45574901,1980.5,1980.0,0.001]
[1771309566658,0.45574901,1980.5,1980.0,0.834]
[1771309567076,0.45574901,1980.5,1979.7,1.39328272]
[1771309567285,0.45574901,1980.5,1979.8,0.833]
[1771309567964,1.26237123,1980.4,1979.8,0.833]
[1771309568154,0.45574901,1980.3,1979.8,0.833]
[1771309568880,0.45574901,1980.3,1979.4,5.45323015]
[1771309569073,0.45574901,1980.3,1979.5,1.741]
[1771309569381,0.45574901,1980.3,1979.4,0.49908271]
[1771309569556,0.45574901,1980.3,1979.6,0.832]
[1771309570378,0.45574901,1980.1,1979.6,0.832]
[1771309570579,0.45574901,1980.1,1979.5,0.909]
[1771309570580,0.45574901,1980.1,1979.7,0.832]
[1771309571082,1.26249873,1980.2,1979.7,0.832]
[1771309571462,0.45574901,1980.5,1979.8,5.95231286]
[1771309571672,1.71796795,1980.7,1980.0,5.95231286]
[1771309571860,0.45574901,1980.6,1979.8,5.95231286]
[1771309572061,0.45574901,1980.6,1979.9,0.832]
[1771309572456,1.26230749,1980.5,1979.9,1.33108271]
[1771309572660,0.45574901,1980.7,1980.0,5.95231286]
[1771309572661,1.71796771,1980.7,1980.0,5.95231286]
[1771309573089,1.71796771,1980.7,1979.9,2.09468834]
[1771309573090,0.45574901,1980.0,1978.7,0.49908271]
[1771309573386,0.45574901,1979.9,1978.9,0.49908271]
[1771309573899,0.45574901,1979.9,1979.0,1.40908271]
[1771309574066,0.49266159,1980.4,1979.2,5.95231286]
[1771309574261,0.49266159,1980.2,1979.3,0.833]
[1771309574588,1.75522408,1980.1,1979.3,1.30788798]
[1771309575273,0.49266159,1980.0,1979.3,1.30788798]
[1771309576484,1.26261866,1980.1,1979.4,0.47488798]
[1771309576785,1.26261866,1980.1,1979.4,0.47588798]
[1771309577374,1.26254201,1980.2,1979.4,0.47588798]
[1771309578572,0.49266159,1980.3,1979.5,0.47488798]
[1771309581373,1.75509894,1980.3,1979.6,0.47488798]
[1771309581571,1.75509894,1980.3,1979.7,0.91]
[1771309583279,1.75522408,1980.1,1979.8,1.741]
[1771309583485,1.75522408,1980.1,1979.9,1.482]
[1771309584199,1.75522408,1980.1,1980.0,0.831]
[1771309584570,1.75522408,1980.1,1980.0,0.76192222]
[1771309585181,1.75522408,1980.1,1979.9,1.741]
[1771309588202,1.75522408,1980.1,1979.8,1.74]
[1771309589901,1.75522408,1980.1,1979.8,1.741]
[1771309591491,1.75522408,1980.1,1979.8,0.829]
[1771309593008,1.75522408,1980.1,1979.8,0.13526572]
[1771309593489,1.26256249,1980.1,1979.8,0.13526572]
[1771309594679,1.26360611,1980.2,1979.8,0.13526572]
[1771309595301,1.26360611,1980.2,1979.8,0.6101537]
[1771309595302,0.0011,1980.2,1979.8,0.6101537]
[1771309595501,0.0011,1980.2,1979.8,1.87289866]
[1771309596401,0.0011,1980.2,1979.8,0.6101537]
[1771309596807,0.0011,1980.2,1979.8,0.13526572]
[1771309597502,0.0011,1980.2,1979.8,1.04526572]
[1771309599183,0.0011,1980.2,1979.8,2.78288872]
[1771309600112,0.0011,1980.2,1979.9,0.47488798]
[1771309601228,0.0011,1980.2,1979.9,7.2005191]
[1771309602512,0.0011,1980.2,1979.9,5.93883742]
[1771309602713,0.0011,1980.1,1979.9,0.47588798]
[1771309603422,0.0011,1980.1,1979.9,1.67777184]
[1771309606134,0.0011,1980.3,1980.0,0.46797777]
[1771309606501,0.0011,1980.5,1980.1,5.46294944]
[1771309606730,0.0011,1980.5,1980.2,0.832]
[1771309607232,0.0011,1980.5,1980.2,1.742]
[1771309608757,0.0011,1980.5,1980.2,3.00445621]
[1771309608933,0.0011,1980.5,1980.2,1.742]
[1771309611446,0.45795487,1980.4,1979.9,0.001]
[1771309611740,0.45795487,1980.4,1979.9,0.835]
[1771309613939,1.7213627,1980.5,1979.9,2.55037661]
[1771309614823,1.7213627,1980.5,1980.0,0.001]
[1771309615018,0.0011,1980.3,1980.0,0.001]
[1771309618445,0.0011,1980.3,1980.0,0.4537204]
[1771309619656,0.0011,1980.3,1980.0,0.001]
[1771309619854,0.0011,1980.3,1980.1,0.91]
[1771309620719,0.0011,1980.3,1980.1,2.17255487]
[1771309620917,0.0011,1980.4,1980.1,2.62527527]
[1771309621158,0.0011,1980.6,1980.2,0.4527204]
[1771309621332,0.0011,1980.6,1980.3,0.837]
[1771309622726,0.0011,1980.6,1980.3,2.09942496]
[1771309622960,0.0011,1980.6,1980.2,1.26244348]
[1771309623169,0.0011,1980.6,1980.4,0.838]
[1771309626055,0.0011,1980.6,1980.2,1.26244348]
[1771309626229,0.0011,1980.6,1980.3,1.749]
[1771309627133,0.0011,1980.6,1980.3,2.2017204]
[1771309627328,0.45795487,1980.9,1980.3,2.2017204]
[1771309627531,0.45795487,1981.1,1980.5,0.4527204]
[1771309628268,0.0011,1980.6,1980.5,1.71502789]
[1771309628448,5.04721741,1981.3,1980.7,0.4527204]
[1771309628449,0.0011,1980.8,1980.7,0.4527204]
[1771309628649,0.45795487,1981.4,1980.8,0.4527204]
[1771309628950,0.45795487,1981.4,1980.8,0.4183204]
[1771309629357,0.45795487,1981.4,1980.7,1.2927204]
[1771309630357,1.71974888,1981.4,1980.7,2.55485361]
[1771309632033,1.26179401,1981.4,1980.7,2.55485361]
[1771309632335,1.71977341,1981.3,1980.7,2.55485361]
[1771309633369,0.45795487,1981.2,1980.7,2.10213321]
[1771309633937,0.45795487,1981.2,1980.8,1.75]
[1771309634642,1.71982494,1981.2,1980.9,0.84]
[1771309635055,0.45811153,1981.1,1980.9,0.84]
[1771309636155,0.45811153,1981.1,1981.0,0.84]
[1771309636361,1.26187007,1981.2,1981.0,0.84]
[1771309636563,1.7199816,1981.2,1981.0,0.84]
[1771309637188,0.45811153,1981.1,1981.0,0.84]
[1771309640616,0.45921153,1981.1,1981.0,0.84]
[1771309640981,1.72113672,1981.1,1981.0,0.84]
[1771309641181,1.72113672,1981.1,1980.6,0.001]
[1771309641412,0.45811153,1981.0,1980.7,1.748]
[1771309643383,0.0011,1981.1,1980.7,3.01017385]
[1771309648414,0.0011,1981.1,1980.8,0.839]
[1771309648915,0.45921153,1981.1,1980.8,0.839]
[1771309650525,0.45811153,1981.0,1980.6,0.001]
[1771309650727,0.45811153,1981.0,1980.7,0.839]
[1771309652726,1.7201057,1981.0,1980.8,0.001]
[1771309652926,0.45921153,1981.0,1980.8,0.84]
[1771309654135,0.0011,1981.0,1980.8,0.84]
[1771309658516,1.72113703,1981.1,1980.8,2.57678162]
[1771309658517,0.0011,1981.1,1980.8,2.57678162]
[1771309658820,0.0011,1981.1,1980.8,8.03512932]
[1771309659227,0.0011,1981.1,1980.8,6.77301671]
[1771309659424,0.0011,1981.1,1980.8,0.84]
[1771309662724,1.72101492,1981.3,1980.9,0.47466901]
[1771309662725,0.0011,1981.3,1980.9,0.47466901]
[1771309663112,0.0011,1981.3,1980.8,7.56046385]
[1771309663113,1.72101061,1981.3,1980.8,6.2983477]
[1771309663708,0.45921153,1981.3,1980.8,7.5604593]
[1771309663913,0.0011,1981.3,1980.8,8.03512831]
[1771309665849,0.0011,1981.3,1980.9,0.001]
[1771309666226,0.0011,1981.0,1980.9,0.001]
[1771309666424,0.0011,1981.3,1980.9,0.001]